bitfinex/quotes_ETHUSD_20250605
["timestamp","ask_amount","ask_price","bid_price","bid_amount"]
[1749086843328,0.024,2604.9,2604.8,23.821]
[1749086843660,0.024,2604.9,2604.8,27.65382]
[1749086843866,0.4960094,2604.9,2604.8,19.83282]
[1749086844171,0.4960094,2604.9,2604.8,27.65082]
[1749086846172,0.024,2604.9,2604.8,27.65082]
[1749086846845,0.024,2604.9,2604.8,35.92682]
[1749086847078,0.024,2604.9,2604.8,32.094]
[1749086847277,0.024,2604.9,2604.8,34.4428]
[1749086856885,0.00089171,2604.9,2604.8,34.4428]
[1749086864319,0.00089171,2604.9,2604.8,26.1668]
[1749086864895,0.00089171,2604.9,2604.8,24.5688]
[1749086865429,0.00089171,2604.9,2604.8,37.7458]
[1749086865617,0.00089171,2604.9,2604.8,11.99385215]
[1749086865819,0.00089171,2604.9,2604.8,48.20885215]
[1749086867132,4.817e-05,2604.9,2604.8,46.60885215]
[1749086867335,4.817e-05,2604.9,2604.8,38.3537626]
[1749086868438,4.817e-05,2604.9,2604.8,30.0]
[1749086868641,4.817e-05,2604.9,2604.8,36.215]
[1749086869201,4.817e-05,2604.9,2604.8,52.215]
[1749086869738,4.817e-05,2604.9,2604.8,52.214]
[1749086872855,4.817e-05,2604.9,2604.8,52.212]
[1749086873055,4.817e-05,2604.9,2604.8,24.798115]
[1749086873239,4.817e-05,2604.9,2604.8,32.360876]
[1749086873558,4.817e-05,2604.9,2604.8,48.360876]
[1749086874961,4.817e-05,2604.9,2604.8,42.147876]
[1749086875120,4.817e-05,2604.9,2604.8,48.359876]
[1749086875453,4.817e-05,2604.9,2604.8,58.233876]
[1749086876565,4.817e-05,2604.9,2604.8,42.147876]
[1749086876866,4.817e-05,2604.9,2604.8,58.233876]
[1749086877165,4.817e-05,2604.9,2604.8,41.455532]
[1749086881863,1.2418,2605.6,2604.8,25.455532]
[1749086882063,1.2418,2605.6,2604.9,30.0]
[1749086887782,1.2792,2605.9,2604.9,30.0]
[1749086888085,1.2792,2605.9,2605.1,30.0]
[1749086888302,1.2792,2605.9,2605.3,40.0]
[1749086888601,1.2792,2605.9,2605.5,30.0]
[1749086888763,1.2792,2605.9,2605.6,6.213]
[1749086888963,1.2792,2605.9,2605.7,10.446391]
[1749086889664,0.02,2605.9,2605.7,10.446391]
[1749086890883,1.2117,2605.8,2605.7,2.471618]
[1749086892009,1.2117,2605.8,2605.7,6.213]
[1749086892299,1.2117,2605.8,2605.7,31.775414]
[1749086892608,2.2433594,2605.8,2605.7,7.812]
[1749086892813,1.233,2605.7,2604.8,8.274]
[1749086892994,3.37189403,2605.6,2605.0,30.0]
[1749086893794,1.2485,2605.5,2605.0,30.0]
[1749086894306,3.37189403,2605.4,2605.1,3.854099]
[1749086894466,3.37189403,2605.2,2604.9,10.0]
[1749086894665,1.2485,2605.1,2605.0,1.598]
[1749086894893,1.2485,2605.1,2605.0,7.813]
[1749086895284,1.2485,2605.1,2605.0,10.308]
[1749086900779,1.2485,2605.1,2605.0,13.560551]
[1749086904082,1.2485,2605.1,2605.0,13.559551]
[1749086904287,1.2485,2605.1,2605.0,7.81]
[1749086904893,1.2485,2605.1,2605.0,13.4732]
[1749086905537,1.2485,2605.1,2605.0,12.781858]
[1749086905734,1.2485,2605.1,2605.0,4.971858]
[1749086905937,1.7105394,2605.1,2605.0,7.811]
[1749086906340,2.2605394,2605.1,2605.0,1.598]
[1749086906553,1.7105394,2605.1,2605.0,23.396329]
[1749086906847,1.2485,2605.1,2605.0,1.598]
[1749086907010,1.2485,2605.1,2605.0,14.957449]
[1749086907339,1.2485,2605.1,2605.0,4.982748]
[1749086907550,1.2485,2605.1,2605.0,6.580748]
[1749086907847,1.2485,2605.1,2605.0,13.967974]
[1749086908155,1.7105394,2605.1,2605.0,12.090974]
[1749086911532,1.2768,2605.4,2605.1,30.0]
[1749086911922,1.2768,2605.4,2605.1,28.136849]
[1749086912229,1.2768,2605.4,2605.1,18.183319]
[1749086912530,1.2768,2605.4,2605.1,12.96159]
[1749086915055,1.2768,2605.4,2605.1,11.778115]
[1749086915261,5.15996343,2605.3,2605.2,1.598]
[1749086915430,5.15996343,2605.3,2605.2,7.811]
[1749086918734,5.15996343,2605.3,2605.2,16.085]
[1749086919260,5.70996343,2605.3,2605.2,9.872]
[1749086919556,5.70996343,2605.3,2605.2,16.085]
[1749086919929,5.70996343,2605.3,2605.2,9.872]
[1749086920135,5.70996343,2605.3,2605.2,16.085]
[1749086923443,5.70996343,2605.3,2605.2,9.872]
[1749086923741,5.70996343,2605.3,2605.2,16.085]
[1749086923964,5.70996343,2605.3,2605.2,9.872]
[1749086924442,5.70996343,2605.3,2605.2,16.085]
[1749086929850,5.70996343,2605.3,2605.2,9.872]
[1749086930055,5.70996343,2605.3,2605.2,16.085]
[1749086930308,5.70996343,2605.3,2605.2,9.872]
[1749086930504,5.70996343,2605.3,2605.2,16.085]
[1749086931866,2.3380694,2605.3,2605.2,16.085]
[1749086932066,5.24509403,2605.3,2605.2,16.085]
[1749086944675,1.8732,2605.3,2605.2,16.085]
[1749086944881,5.24509403,2605.3,2605.2,16.085]
[1749086945076,3.92189403,2605.3,2605.2,16.085]
[1749086948972,0.55,2605.5,2605.2,16.085]
[1749086950409,3.92189403,2605.4,2605.3,9.874]
[1749086951679,3.92189403,2605.4,2605.3,16.087]
[1749086954010,3.92189403,2605.4,2605.3,9.874]
[1749086954210,5.57448343,2605.4,2605.3,8.276]
[1749086954426,5.57448343,2605.4,2605.3,16.087]
[1749086955620,0.55,2604.9,2603.2,30.0]
[1749086955769,3.37189403,2604.3,2603.4,40.0]
[1749086956113,3.37189403,2604.5,2603.7,16.0]
[1749086956309,3.37189403,2604.5,2603.9,16.0]
[1749086956472,3.37189403,2604.7,2604.2,16.0]
[1749086956674,3.37189403,2604.7,2604.4,16.0]
[1749086960798,3.92189403,2604.9,2604.1,16.0]
[1749086961097,3.92189403,2604.9,2604.6,13.0877]
[1749086961302,3.92189403,2604.9,2604.7,7.811]
[1749086961501,3.92189403,2604.9,2604.8,1.598]
[1749086961714,4.31408343,2604.9,2603.8,16.0]
[1749086962018,3.92189403,2604.9,2603.8,30.0]
[1749086962990,3.92189403,2604.9,2604.0,40.0]
[1749086963192,3.92189403,2604.9,2604.0,30.0]
[1749086964616,3.37189403,2604.9,2604.0,30.0]
[1749086965402,3.37189403,2604.9,2604.2,30.0]
[1749086968045,3.37189403,2604.9,2604.4,16.17265]
[1749086968818,3.37189403,2604.9,2604.4,4.88065]
[1749086969020,3.37189403,2604.9,2604.6,10.0]
[1749086969238,3.37189403,2604.9,2604.7,1.598]
[1749086970509,1.2655,2604.8,2604.2,40.0]
[1749086970709,1.2655,2604.8,2604.4,29.998932]
[1749086970945,1.2655,2604.8,2604.4,19.998932]
[1749086972303,1.2655,2604.8,2604.4,18.091069]
[1749086972509,1.2655,2604.8,2604.3,1.598]
[1749086972837,3.37189403,2604.7,2604.4,6.213]
[1749086973551,3.37189403,2604.7,2604.5,6.213]
[1749086974550,1.2655,2604.8,2604.5,6.213]
[1749086976443,1.2655,2604.8,2604.1,8.276]
[1749086976740,1.2655,2604.8,2604.6,1.598]
[1749086977709,1.2655,2604.8,2604.7,6.213]
[1749086979211,1.2655,2604.8,2604.7,14.49]
[1749086982639,1.2655,2604.8,2604.7,8.277]
[1749086982847,1.2655,2604.8,2604.7,14.49]
[1749086983039,1.7292394,2604.8,2604.7,14.49]
[1749086984220,1.2655,2604.8,2604.7,14.49]
[1749086987959,3.37189403,2604.9,2604.7,14.49]
[1749086989161,3.92189403,2604.9,2604.8,1.598]
[1749086989530,3.92189403,2604.9,2604.8,7.811]
[1749086991852,1.2818,2605.0,2604.8,7.811]
[1749086992033,0.55,2605.1,2604.8,7.811]
[1749086992232,3.92189403,2605.1,2604.8,7.811]
[1749086996283,3.92189403,2605.1,2604.9,10.0]
[1749086998239,0.55,2605.1,2604.9,10.0]
[1749086998439,0.55,2605.3,2604.9,10.0]
[1749086998883,0.55,2605.1,2604.9,10.0]
[1749086999034,3.37189403,2605.2,2604.9,10.0]
[1749086999236,3.92189403,2605.3,2604.9,10.0]
[1749086999453,1.3395,2605.4,2605.0,10.0]
[1749086999657,1.3395,2605.4,2604.9,26.636214]
[1749086999658,1.2939,2605.6,2604.9,30.0]
[1749086999942,0.55,2605.5,2604.9,30.0]
[1749087000264,3.92189403,2605.5,2604.9,30.0]
[1749087000481,3.92189403,2605.5,2604.9,20.293283]
[1749087001068,3.92189403,2605.5,2605.0,10.0]
[1749087001289,3.92189403,2605.5,2604.9,24.107935]
[1749087001495,3.92189403,2605.5,2604.9,13.358734]
[1749087001797,3.92189403,2605.5,2604.8,1.598]
[1749087002082,4.44347343,2605.5,2605.0,16.212]
[1749087002442,4.66409403,2605.3,2605.1,6.212]
[1749087002694,5.21409403,2605.3,2605.2,6.212]
[1749087003045,0.55,2605.2,2604.7,8.277]
[1749087003280,3.37189403,2605.0,2604.8,7.809]
[1749087003896,1.0714094,2605.2,2604.8,7.809]
[1749087004192,3.92189403,2605.2,2605.0,10.0]
[1749087004395,3.92189403,2605.2,2604.9,22.490696]
[1749087004688,3.92189403,2605.2,2605.0,10.0]
[1749087005068,3.92189403,2605.2,2604.9,12.490696]
[1749087005371,3.92189403,2605.2,2604.9,11.686649]
[1749087006588,3.92189403,2605.2,2604.9,10.363794]
[1749087007954,4.44330343,2605.2,2604.9,10.066793]
[1749087008262,4.44330343,2605.2,2605.0,6.212]
[1749087008467,4.44330343,2605.2,2604.9,20.674999]
[1749087008652,4.44330343,2605.2,2605.1,6.212]
[1749087009174,0.5214094,2605.2,2605.1,6.212]
[1749087009355,3.89330343,2605.2,2605.1,6.212]
[1749087009557,4.44330343,2605.2,2605.1,6.212]
[1749087010576,0.55,2604.9,2604.8,1.597]
[1749087010776,5.20569403,2604.9,2604.8,1.597]
[1749087011193,5.20569403,2604.9,2604.8,7.808]
[1749087011594,5.20569403,2604.9,2604.8,1.597]
[1749087011902,5.20569403,2604.9,2604.8,7.808]
[1749087012104,5.77069647,2604.9,2604.8,7.808]
[1749087014861,4.48689647,2604.9,2604.8,7.808]
[1749087015264,3.93689647,2604.9,2604.8,7.808]
[1749087015866,0.56500244,2604.9,2604.8,7.808]
[1749087016077,0.55,2605.0,2604.8,7.808]
[1749087016278,7.9,2605.9,2604.9,10.0]
[1749087016279,3.37189403,2605.4,2604.9,10.0]
[1749087016535,1.2909,2605.5,2605.1,10.0]
[1749087016835,3.37189403,2605.6,2605.2,8.073525]
[1749087017009,3.37189403,2605.6,2604.9,10.0]
[1749087017010,3.37189403,2605.6,2604.9,28.438276]
[1749087017183,3.37189403,2605.6,2605.1,23.665925]
[1749087017384,3.37189403,2605.6,2604.9,22.263876]
[1749087017778,0.55,2605.5,2604.9,22.263876]
[1749087018419,1.2909,2605.7,2604.9,22.263876]
[1749087018784,0.55,2605.6,2604.9,22.263876]
[1749087019102,3.92189403,2605.6,2604.9,22.263876]
[1749087019522,3.37189403,2605.4,2604.8,10.508325]
[1749087019819,3.37189403,2605.2,2605.0,1.597]
[1749087020521,0.55,2605.2,2605.0,1.597]
[1749087021310,3.92189403,2605.2,2605.1,6.211]
[1749087021631,4.45006343,2605.2,2605.1,1.597]
[1749087021919,0.14686141,2604.6,2603.5,30.0]
[1749087022122,0.14686141,2604.6,2604.0,30.0]
[1749087022424,0.14686141,2604.6,2604.2,30.0]
[1749087023219,0.14686141,2604.6,2604.4,30.526533]
[1749087023416,0.14686141,2604.6,2604.4,20.526533]
[1749087023839,0.14686141,2604.6,2604.4,13.081897]
[1749087024017,0.14686141,2604.6,2604.1,1.597]
[1749087024018,0.14686141,2604.6,2604.5,6.211]
[1749087025218,0.14686141,2604.6,2604.5,9.367]
[1749087025385,0.14686141,2604.6,2604.5,17.643]
[1749087025783,0.14686141,2604.6,2604.5,8.276]
[1749087026114,0.14686141,2604.6,2604.5,14.44384]
[1749087026791,0.69686141,2604.6,2604.5,11.583999]
[1749087026991,1.10373695,2604.6,2604.5,7.808]
[1749087027198,0.69686141,2604.6,2604.5,11.486206]
[1749087027932,0.69686141,2604.6,2604.5,7.808]
[1749087028224,0.69686141,2604.6,2604.5,13.703]
[1749087029218,0.14686141,2604.6,2604.5,13.703]
[1749087032589,0.14686141,2604.6,2604.5,7.808]
[1749087033386,0.14686141,2604.6,2604.5,27.851718]
[1749087033598,0.14686141,2604.6,2604.5,25.071205]
[1749087035446,0.14686141,2604.6,2604.5,33.347205]
[1749087038901,0.14686141,2604.8,2604.5,33.347205]
[1749087039141,0.14686141,2604.8,2604.6,24.000967]
[1749087039641,0.14686141,2604.8,2604.6,19.537855]
[1749087039799,0.14686141,2604.8,2604.6,17.067899]
[1749087040233,0.14686141,2604.6,2604.5,9.873]
[1749087040533,0.14686141,2604.6,2604.5,16.084]
[1749087041460,0.14686141,2604.6,2604.5,22.539805]
[1749087042753,0.14686141,2604.6,2604.5,16.328805]
[1749087042920,0.14686141,2604.6,2604.5,22.539805]
[1749087044835,0.14686141,2604.6,2604.5,21.537316]
[1749087045032,0.14686141,2604.6,2604.5,9.873]
[1749087045422,0.14686141,2604.6,2604.5,15.326316]
[1749087046272,0.14686141,2604.6,2604.5,21.537316]
[1749087046968,0.14686141,2604.6,2604.5,16.084]
[1749087047859,0.14686141,2604.6,2604.5,8.276]
[1749087048165,0.14686141,2604.6,2604.5,22.383904]
[1749087049136,0.14686141,2604.6,2604.5,18.182364]
[1749087050272,0.14686141,2604.6,2604.5,9.873]
[1749087050437,0.14686141,2604.6,2604.5,16.084]
[1749087051247,3.51875544,2604.6,2604.5,9.873]
[1749087051604,5.76793098,2604.6,2604.5,9.873]
[1749087051938,5.76793098,2604.6,2604.5,16.084]
[1749087052984,1.04873695,2604.6,2604.5,1.597]
[1749087053187,4.06875544,2604.6,2603.0,2.98809403]
[1749087053344,0.55,2604.1,2603.1,30.0]
[1749087053545,0.55,2604.1,2603.2,30.0]
[1749087053750,0.55,2604.1,2603.1,30.0]
[1749087054082,0.14686141,2603.8,2603.1,30.0]
[1749087054288,0.14686141,2603.8,2603.3,40.0]
[1749087054589,0.14686141,2603.8,2603.5,19.623216]
[1749087054749,0.14686141,2603.8,2603.5,18.079753]
[1749087055146,0.14686141,2603.8,2603.7,4.128665]
[1749087055347,0.14686141,2603.8,2603.7,14.002665]
[1749087055576,0.14686141,2603.8,2603.7,20.213665]
[1749087058769,0.14686141,2603.8,2603.7,12.405665]
[1749087058942,0.14686141,2603.8,2603.7,20.214665]
[1749087061593,0.14686141,2603.8,2603.7,12.669699]
[1749087061778,5.36205544,2603.8,2603.7,16.086]
[1749087062161,0.14686141,2603.5,2602.6,3.31]
[1749087062396,0.14686141,2603.3,2602.8,14.386144]
[1749087062552,0.14686141,2603.1,2602.9,10.0]
[1749087062750,0.14686141,2602.9,2602.8,12.080769]
[1749087062945,0.14686141,2602.9,2602.8,17.270249]
[1749087063598,0.14686141,2603.1,2602.8,17.270249]
[1749087063759,0.14686141,2603.1,2602.9,26.98436]
[1749087063960,0.14686141,2603.1,2602.9,20.698238]
[1749087064689,0.14686141,2603.1,2602.9,20.456438]
[1749087065199,0.55,2603.5,2602.9,20.456438]
[1749087065400,0.14686141,2603.3,2602.9,20.456438]
[1749087065960,0.14686141,2603.3,2603.0,7.81]
[1749087066200,0.14686141,2603.3,2603.1,11.073261]
[1749087066499,0.14686141,2603.3,2603.1,6.213]
[1749087066858,0.14686141,2603.3,2603.0,1.597]
[1749087067058,0.14686141,2603.3,2603.1,6.213]
[1749087067361,0.14686141,2603.1,2603.0,1.597]
[1749087067698,0.69686141,2603.1,2603.0,1.597]
[1749087067998,0.69686141,2603.1,2603.0,7.81]
[1749087069696,0.14686141,2603.1,2603.0,13.79985]
[1749087069898,0.14686141,2603.1,2603.0,13.507]
[1749087072490,0.14686141,2603.1,2603.0,7.294]
[1749087072672,0.14686141,2603.1,2603.0,12.3919]
[1749087072867,0.14686141,2603.1,2602.8,25.394645]
[1749087073082,0.14686141,2603.1,2603.0,1.598]
[1749087075070,0.14686141,2603.1,2603.0,7.812]
[1749087075403,0.14686141,2603.1,2602.7,8.278]
[1749087075404,0.14686141,2602.8,2602.7,8.278]
[1749087075608,0.14686141,2602.8,2602.7,18.815496]
[1749087077316,0.69686141,2602.8,2602.7,16.09]
[1749087077811,0.69686141,2602.8,2602.7,9.876]
[1749087077987,0.69686141,2602.8,2602.7,19.906496]
[1749087078368,0.69686141,2602.8,2602.7,13.692496]
[1749087078636,0.69686141,2602.8,2602.7,16.09]
[1749087078842,0.69686141,2602.8,2602.7,21.096871]
[1749087079024,0.69686141,2602.8,2602.7,20.863876]
[1749087079226,0.69686141,2602.8,2602.7,18.098137]
[1749087080136,0.14686141,2602.8,2602.7,18.098137]
[1749087083144,0.14686141,2602.8,2602.7,10.286137]
[1749087083296,0.14686141,2602.8,2602.7,18.177883]
[1749087084503,0.14686141,2602.8,2602.7,11.962883]
[1749087084864,0.14686141,2602.8,2602.7,16.094]
[1749087085010,0.14686141,2602.8,2602.7,19.268883]
[1749087085203,0.14686141,2602.8,2602.7,16.094]
[1749087085545,0.14686141,2602.8,2602.7,18.980883]
[1749087085744,0.14686141,2602.8,2602.7,16.094]
[1749087086052,0.14686141,2602.8,2602.7,16.093]
[1749087086201,0.14686141,2602.8,2602.7,18.097976]
[1749087088407,0.14686141,2602.8,2602.7,16.093]
[1749087089133,0.14686141,2602.8,2602.7,18.337242]
[1749087089304,0.14686141,2602.8,2602.7,16.093]
[1749087089504,4.06875544,2602.8,2602.7,8.278]
[1749087089710,4.60711098,2602.8,2602.7,16.093]
[1749087090057,5.91801098,2602.8,2602.7,16.093]
[1749087090351,5.91801098,2602.8,2602.7,16.092]
[1749087090768,1.3109,2602.8,2602.7,16.092]
[1749087091048,0.14686141,2602.8,2602.7,16.092]
[1749087092167,0.14686141,2602.8,2602.7,27.484357]
[1749087093750,0.14686141,2603.0,2602.8,30.0]
[1749087093921,0.14686141,2603.2,2602.8,30.0]
[1749087094122,7.88,2604.5,2602.8,33.37189403]
[1749087094123,0.14686141,2603.4,2602.8,33.37189403]
[1749087094354,0.14686141,2603.4,2603.1,40.0]
[1749087094515,0.14686141,2603.4,2603.1,30.0]
[1749087095024,0.14686141,2603.4,2602.9,30.0]
[1749087095927,4.73949403,2604.0,2603.0,3.37189403]
[1749087096259,0.14686141,2603.5,2603.1,30.0]
[1749087098744,0.14686141,2603.5,2602.9,30.0]
[1749087098965,0.14686141,2603.5,2603.1,18.554751]
[1749087099558,0.14686141,2603.2,2603.1,3.15615]
[1749087099721,0.14686141,2603.2,2603.1,4.761806]
[1749087099928,0.14686141,2603.2,2602.9,23.607042]
[1749087100261,0.14686141,2603.2,2603.1,17.249726]
[1749087100835,0.14686141,2603.2,2602.8,30.0]
[1749087101043,0.14686141,2603.2,2603.1,33.041726]
[1749087101255,0.14686141,2603.2,2602.8,30.0]
[1749087101563,0.14686141,2603.2,2603.1,37.818]
[1749087101961,0.14686141,2603.2,2603.1,27.411226]
[1749087102166,0.14686141,2603.2,2603.1,24.936226]
[1749087102377,0.14686141,2603.2,2603.1,7.818]
[1749087102666,0.14686141,2603.2,2603.1,1.599]
[1749087102840,0.14686141,2603.2,2603.1,7.817]
[1749087103169,0.14686141,2603.2,2603.1,37.817]
[1749087103939,0.14686141,2603.2,2603.1,36.88996]
[1749087104353,0.14686141,2603.2,2603.1,34.99096]
[1749087104552,0.14686141,2603.2,2603.1,28.152175]
[1749087104752,0.14686141,2603.2,2603.1,20.202018]
[1749087104955,0.14686141,2603.2,2603.1,12.606018]
[1749087108780,0.14686141,2603.2,2603.1,30.350612]
[1749087108958,0.14686141,2603.2,2603.1,22.49213]
[1749087111351,0.14686141,2603.2,2603.1,24.25594682]
[1749087112585,0.14686141,2603.2,2603.1,30.46994682]
[1749087117993,0.14686141,2603.2,2603.1,47.013376]
[1749087119804,0.14686141,2603.2,2603.1,39.543324]
[1749087120396,0.14686141,2603.2,2603.1,31.730324]
[1749087120704,0.14686141,2603.2,2603.1,39.543324]
[1749087122440,0.14686141,2603.8,2603.4,16.0]
[1749087122598,0.14686141,2603.6,2603.5,46.0]
[1749087123000,0.14686141,2603.6,2603.5,25.673161]
[1749087124132,0.14686141,2603.8,2603.6,20.631208]
[1749087124317,0.16686141,2603.9,2603.8,30.0]
[1749087124625,0.16686141,2603.9,2603.8,37.811]
[1749087125012,0.02,2603.9,2603.8,37.811]
[1749087125529,0.16686141,2603.9,2603.8,37.811]
[1749087125727,0.02,2603.9,2603.8,37.811]
[1749087126232,0.16686141,2603.9,2603.8,53.811]
[1749087129790,0.16686141,2603.9,2603.8,55.876]
[1749087129989,0.16686141,2603.9,2603.8,62.089]
[1749087130431,0.16686141,2603.9,2603.8,54.89866026]
[1749087130829,0.16686141,2603.9,2603.8,59.632239]
[1749087131036,0.16686141,2603.9,2603.8,29.208479]
[1749087131244,4.08875544,2603.9,2603.8,27.611479]
[1749087131452,5.94446098,2603.9,2603.8,19.421479]
[1749087131614,5.94446098,2603.9,2603.8,16.089]
[1749087131815,2.57256695,2603.9,2603.8,16.089]
[1749087133631,1.48216141,2603.9,2603.8,16.089]
[1749087134313,2.03216141,2603.9,2603.8,16.089]
[1749087134542,2.03216141,2603.9,2603.8,9.876]
[1749087134711,2.03216141,2603.9,2603.8,16.089]
[1749087135814,1.48216141,2603.9,2603.8,21.218823]
[1749087136015,2.03216141,2603.9,2603.8,16.089]
[1749087136730,1.48216141,2603.9,2603.8,16.089]
[1749087138716,1.48216141,2603.9,2603.8,22.750218]
[1749087139557,0.16686141,2603.9,2603.8,22.750218]
[1749087139740,0.16686141,2603.9,2603.8,38.750218]
[1749087142487,0.16686141,2603.9,2603.8,25.45899599]
[1749087142641,0.16686141,2603.9,2603.8,54.99432699]
[1749087142827,0.02,2603.9,2603.8,54.41832699]
[1749087143154,0.16686141,2603.9,2603.8,54.41832699]
[1749087143561,0.16686141,2603.9,2603.8,60.63132699]
[1749087144553,0.16686141,2603.9,2603.8,59.90239499]
[1749087144731,0.16686141,2603.9,2603.8,42.85956199]
[1749087145852,0.16686141,2603.9,2603.8,40.33528399]
[1749087146442,0.16686141,2603.9,2603.8,39.96528399]
[1749087150858,0.16686141,2603.9,2603.8,33.75228399]
[1749087151071,0.16686141,2603.9,2603.8,39.96528399]
[1749087151763,0.16686141,2603.9,2603.8,39.57795699]
[1749087152280,0.16686141,2603.9,2603.8,38.09171899]
[1749087152442,4.83355544,2603.9,2603.8,23.86199599]
[1749087152646,5.31691098,2603.9,2603.8,31.67199599]
[1749087152844,5.31691098,2603.9,2603.8,23.86199599]
[1749087153046,5.31691098,2603.9,2603.8,31.67199599]
[1749087157278,1.94501695,2603.9,2603.8,31.67199599]
[1749087157576,0.16686141,2603.9,2603.8,31.67199599]
[1749087163589,3.53875544,2603.9,2603.8,25.45899599]
[1749087163764,5.36985544,2603.9,2603.8,9.876]
[1749087163970,5.36985544,2603.9,2603.8,16.089]
[1749087164171,5.90684098,2603.9,2603.8,16.089]
[1749087164371,5.90684098,2603.9,2603.8,9.876]
[1749087164690,5.90684098,2603.9,2603.8,16.089]
[1749087165688,5.90684098,2603.9,2603.8,8.279]
[1749087165895,5.90684098,2603.9,2603.8,16.089]
[1749087169310,5.90684098,2603.9,2603.8,9.876]
[1749087169480,2.53494695,2603.9,2603.8,16.089]
[1749087181532,2.53494695,2603.9,2603.8,8.279]
[1749087181732,2.53494695,2603.9,2603.8,16.089]
[1749087182430,2.53494695,2603.9,2603.8,9.876]
[1749087182630,2.53494695,2603.9,2603.8,16.089]
[1749087182816,2.53494695,2603.9,2603.8,9.876]
[1749087183022,2.53494695,2603.9,2603.8,16.089]
[1749087184731,2.53494695,2603.9,2603.8,9.876]
[1749087184938,2.53494695,2603.9,2603.8,16.089]
[1749087186438,0.16686141,2603.9,2603.8,16.089]
[1749087186610,0.02,2603.9,2603.8,44.651612]
[1749087186813,0.02,2603.9,2603.8,60.651612]
[1749087187023,0.02,2603.9,2603.8,55.819671]
[1749087187704,0.16686141,2603.9,2603.8,55.819671]
[1749087189436,0.16686141,2603.9,2603.8,45.158595]
[1749087189924,0.16686141,2603.9,2603.8,43.083627]
[1749087190120,0.16686141,2603.9,2603.8,35.273627]
[1749087190322,0.16686141,2603.9,2603.8,34.8171]
[1749087191438,0.02,2603.9,2603.8,34.8171]
[1749087195130,0.02,2603.9,2603.8,38.18899403]
[1749087195447,0.0012177,2603.9,2603.8,38.18899403]
[1749087200153,0.0012177,2603.9,2603.8,34.8171]
[1749087201154,0.0012177,2603.9,2603.8,34.8141]
[1749087201653,0.0012177,2603.9,2603.8,27.0071]
[1749087201816,0.0012177,2603.9,2603.8,34.8141]
[1749087206822,0.0012177,2603.9,2603.8,28.6031]
[1749087207021,0.0012177,2603.9,2603.8,34.8131]
[1749087207541,0.0012177,2603.9,2603.8,28.6031]
[1749087207745,0.0012177,2603.9,2603.8,34.8131]
[1749087208459,0.0012177,2603.9,2603.8,28.6031]
[1749087208659,0.0012177,2603.9,2603.8,11.0071]
[1749087208660,3.51997314,2603.9,2603.8,11.0071]
[1749087208863,5.14797045,2603.9,2603.8,18.8131]
[1749087209159,5.14797045,2603.9,2603.8,12.6031]
[1749087209361,5.69797045,2603.9,2603.8,12.6031]
[1749087209577,5.69797045,2603.9,2603.8,18.8131]
[1749087209734,5.69797045,2603.9,2603.8,34.8131]
[1749087209939,5.14797045,2603.9,2603.8,34.8131]
[1749087210477,4.79597314,2603.9,2603.8,34.8131]
[1749087213453,4.79597314,2603.9,2603.8,9.874]
[1749087213849,1.42407911,2603.9,2603.8,19.755849]
[1749087214055,1.42407911,2603.9,2603.8,17.027749]
[1749087214241,4.79597314,2603.9,2603.8,17.027749]
[1749087214441,5.27557045,2603.9,2603.8,15.431749]
[1749087214750,5.82557045,2603.9,2603.8,9.874]
[1749087214935,5.82557045,2603.9,2603.8,16.085]
[1749087215135,5.82557045,2603.9,2603.8,9.874]
[1749087215362,5.82557045,2603.9,2603.8,16.085]
[1749087217668,5.82557045,2603.9,2603.8,1.596]
[1749087218766,5.82557045,2603.9,2603.8,7.807]
[1749087224576,5.27557045,2603.9,2603.8,11.905966]
[1749087224978,5.27557045,2603.9,2603.8,11.662966]
[1749087225382,5.27557045,2603.9,2603.8,19.941966]
[1749087225785,5.27557045,2603.9,2603.8,16.086]
[1749087226141,5.27557045,2603.9,2603.8,46.086]
[1749087226142,0.14807911,2603.9,2603.8,46.086]
[1749087226341,0.14807911,2603.9,2603.8,32.198694]
[1749087226782,0.14807911,2603.9,2603.8,26.229787]
[1749087227280,0.14807911,2603.9,2603.8,19.745757]
[1749087228379,0.0012177,2603.9,2603.8,19.745757]
[1749087228578,0.14807911,2603.9,2603.8,19.745757]
[1749087229265,0.14807911,2603.9,2603.8,16.086]
[1749087229479,0.14807911,2603.9,2603.8,20.044356]
[1749087229992,0.14807911,2603.9,2603.8,16.086]
[1749087231587,0.14807911,2603.9,2603.8,30.284407]
[1749087233672,0.14807911,2603.9,2603.8,21.277767]
[1749087237397,0.0012177,2603.9,2603.8,21.277767]
[1749087237590,0.14807911,2603.9,2603.8,21.277767]
[1749087237785,0.14807911,2603.9,2603.8,32.346145]
[1749087237966,0.14807911,2603.9,2603.8,24.484811]
[1749087238170,3.51997314,2603.9,2603.8,9.875]
[1749087238397,4.00358045,2603.9,2603.8,8.279]
[1749087238569,4.00358045,2603.9,2603.8,16.086]
[1749087239420,4.00358045,2603.9,2603.8,9.875]
[1749087239611,4.00358045,2603.9,2603.8,16.086]
[1749087239801,0.14807911,2603.9,2603.8,20.188674]
[1749087241891,0.0012177,2603.9,2603.8,20.188674]
[1749087242092,0.14807911,2603.9,2603.8,20.188674]
[1749087244353,0.0012177,2603.9,2603.8,20.188674]
[1749087244633,0.14807911,2603.9,2603.8,20.188674]
[1749087245223,0.0012177,2603.9,2603.8,20.188674]
[1749087251642,0.0012177,2603.9,2603.8,9.874]
[1749087251830,0.0012177,2603.9,2603.8,39.874]
[1749087252906,0.0012177,2603.9,2603.8,46.084]
[1749087253615,0.0012177,2603.9,2603.8,45.00446]
[1749087254709,0.0012177,2603.9,2603.8,44.050487]